bitfinex/quotes_BTCUSD_20250922
["timestamp","ask_amount","ask_price","bid_price","bid_amount"]
[1758534717466,0.47688846,112430.0,112420.0,0.11025653]
[1758534718325,0.56308846,112430.0,112420.0,0.00202]
[1758534718536,0.56308846,112430.0,112420.0,0.01202]
[1758534718968,0.56308846,112430.0,112420.0,0.01702]
[1758534719143,0.56308846,112430.0,112420.0,0.04455]
[1758534720124,0.39524,112430.0,112420.0,0.04455]
[1758534720325,0.57312846,112430.0,112420.0,0.12981967]
[1758534720944,0.17788846,112430.0,112420.0,0.12981967]
[1758534721193,0.57292846,112430.0,112420.0,0.12981967]
[1758534721565,0.57292846,112430.0,112420.0,0.04455]
[1758534722285,0.57490846,112430.0,112420.0,0.01702]
[1758534722487,0.62589283,112430.0,112420.0,0.01702]
[1758534722701,0.60062283,112430.0,112420.0,0.02017]
[1758534722916,0.57292846,112430.0,112420.0,0.04455]
[1758534723111,0.57292846,112430.0,112420.0,0.05202019]
[1758534723307,0.57292846,112430.0,112420.0,0.04455]
[1758534723904,0.57292846,112430.0,112420.0,0.03955]
[1758534724333,1.0705423,112430.0,112420.0,0.04255]
[1758534724535,0.57292846,112430.0,112420.0,0.03255]
[1758534724750,0.17788846,112430.0,112420.0,0.03655]
[1758534724962,0.57576846,112430.0,112420.0,0.11077337]
[1758534725172,0.57576846,112430.0,112420.0,0.05734042]
[1758534725604,0.17788846,112430.0,112420.0,0.08749232]
[1758534725810,0.48196846,112430.0,112420.0,0.0697019]
[1758534726859,0.9795823,112430.0,112420.0,0.0697019]
[1758534727270,0.48196846,112430.0,112420.0,0.0697019]
[1758534727414,0.48196846,112430.0,112420.0,0.09446408]
[1758534728649,0.85534042,112430.0,112420.0,0.09446408]
[1758534729135,0.85534042,112430.0,112420.0,0.01517]
[1758534729403,0.85534042,112430.0,112420.0,0.01]
[1758534729404,1.28435675,112430.0,112420.0,0.01]
[1758534730047,0.50991846,112430.0,112420.0,0.01]
[1758534730288,0.88329042,112430.0,112420.0,0.01]
[1758534730648,0.88329042,112430.0,112420.0,0.007]
[1758534730846,0.50991846,112430.0,112420.0,0.007]
[1758534731080,0.50991846,112430.0,112420.0,0.002]
[1758534731275,0.57921042,112430.0,112420.0,0.002]
[1758534731479,1.36533042,112430.0,112420.0,0.005]
[1758534732060,0.20583846,112430.0,112420.0,0.005]
[1758534732266,0.97867042,112430.0,112420.0,0.00504]
[1758534732474,0.50985846,112430.0,112420.0,0.00504]
[1758534732682,0.97943042,112430.0,112420.0,0.00504]
[1758534733108,0.60863846,112430.0,112420.0,0.00504]
[1758534733330,1.44065205,112430.0,112420.0,0.00504]
[1758534733539,0.63633283,112430.0,112420.0,0.00504]
[1758534733974,0.60863846,112430.0,112420.0,0.00504]
[1758534734443,0.98201042,112430.0,112420.0,0.00504]
[1758534734652,0.98201042,112430.0,112420.0,0.00304]
[1758534734853,0.60863846,112430.0,112420.0,4e-05]
[1758534735314,1.35538238,112430.0,112420.0,4e-05]
[1758534735524,1.38307675,112430.0,112420.0,4e-05]
[1758534735911,0.63633283,112430.0,112420.0,4e-05]
[1758534736122,0.91921042,112430.0,112420.0,4e-05]
[1758534736286,1.33257846,112430.0,112420.0,4e-05]
[1758534736486,0.94801846,112430.0,112420.0,0.0021]
[1758534736731,1.32139042,112430.0,112420.0,4e-05]
[1758534736932,0.95059846,112430.0,112420.0,4e-05]
[1758534737079,0.94801846,112430.0,112420.0,4e-05]
[1758534737290,1.69734238,112430.0,112420.0,4e-05]
[1758534737501,0.94801846,112430.0,112420.0,4e-05]
[1758534737727,1.32139042,112430.0,112420.0,4e-05]
[1758534738624,1.32139042,112430.0,112420.0,0.0021]
[1758534738853,0.94801846,112430.0,112420.0,0.0021]
[1758534739313,1.32397042,112430.0,112420.0,4e-05]
[1758534739573,1.32139042,112430.0,112420.0,4e-05]
[1758534739796,1.69734238,112430.0,112420.0,4e-05]
[1758534740240,1.29000238,112430.0,112420.0,4e-05]
[1758534740468,1.32103042,112430.0,112420.0,0.0021]
[1758534740708,0.94765846,112430.0,112420.0,0.0021]
[1758534740938,1.32103042,112430.0,112420.0,0.0021]
[1758534741152,0.94765846,112430.0,112420.0,4e-05]
[1758534741378,1.32103042,112430.0,112420.0,0.0021]
[1758534741591,1.32103042,112430.0,112420.0,4e-05]
[1758534741852,0.94765846,112430.0,112420.0,4e-05]
[1758534742090,1.32103042,112430.0,112420.0,4e-05]
[1758534742739,1.32361042,112430.0,112420.0,4e-05]
[1758534742949,1.78225205,112430.0,112420.0,4e-05]
[1758534743179,1.80994642,112430.0,112420.0,4e-05]
[1758534743611,1.72824439,112430.0,112420.0,4e-05]
[1758534744053,0.98150047,112430.0,112420.0,4e-05]
[1758534744258,1.70055002,112430.0,112420.0,4e-05]
[1758534745336,0.92019806,112430.0,112420.0,4e-05]
[1758534745495,1.70995806,112430.0,112420.0,4e-05]
[1758534746049,2.08333002,112430.0,112420.0,4e-05]
[1758534746258,1.3365861,112430.0,112420.0,4e-05]
[1758534746468,2.08591002,112430.0,112420.0,4e-05]
[1758534746677,2.11360439,112430.0,112420.0,4e-05]
[1758534747138,1.40613925,112430.0,112420.0,4e-05]
[1758534747345,2.15288317,112430.0,112420.0,4e-05]
[1758534747538,1.40613925,112430.0,112420.0,4e-05]
[1758534747741,1.36686047,112430.0,112420.0,4e-05]
[1758534747951,2.11360439,112430.0,112420.0,4e-05]
[1758534748377,1.32384439,112430.0,112420.0,4e-05]
[1758534748582,2.01530439,112430.0,112420.0,4e-05]
[1758534748796,2.11150439,112430.0,112420.0,4e-05]
[1758534749179,0.54915047,112430.0,112420.0,0.00209]
[1758534749440,0.17788846,112430.0,112420.0,0.02905]
[1758534749591,0.48612846,112430.0,112420.0,0.0901033]
[1758534749797,0.48612846,112430.0,112420.0,0.29815948]
[1758534749984,0.85950042,112430.0,112420.0,0.1202552]
[1758534750185,0.48612846,112430.0,112420.0,0.1202552]
[1758534750382,0.85950042,112430.0,112420.0,0.1202552]
[1758534750637,0.85950042,112430.0,112420.0,0.0592019]
[1758534750864,0.48612846,112430.0,112420.0,0.0592019]
[1758534751036,0.85950042,112430.0,112420.0,0.0592019]
[1758534751807,0.48612846,112430.0,112420.0,0.0592019]
[1758534752452,0.85950042,112430.0,112420.0,0.0592019]
[1758534752668,0.85950042,112430.0,112420.0,0.1202552]
[1758534752903,0.85950042,112430.0,112420.0,0.0592019]
[1758534753585,0.88591042,112430.0,112420.0,0.0322419]
[1758534754532,0.91390639,112430.0,112420.0,0.0322419]
[1758534754780,1.25390639,112430.0,112420.0,4e-05]
[1758534755003,1.22393042,112430.0,112420.0,0.00209]
[1758534755244,1.22393042,112430.0,112420.0,0.02905]
[1758534755494,0.92136846,112430.0,112420.0,0.40242196]
[1758534755717,0.58136846,112430.0,112420.0,0.11901886]
[1758534755930,0.58136846,112430.0,112420.0,0.0592019]
[1758534756960,0.17788846,112430.0,112420.0,0.07699232]
[1758534757184,0.48528846,112430.0,112420.0,0.43257386]
[1758534757420,0.48528846,112430.0,112420.0,0.0592019]
[1758534757641,0.48528846,112430.0,112420.0,0.43257386]
[1758534757849,0.48528846,112430.0,112420.0,0.12025485]
[1758534758054,0.48528846,112430.0,112420.0,0.43257386]
[1758534758286,0.85866042,112430.0,112420.0,0.0592019]
[1758534758498,0.88507042,112430.0,112420.0,0.0322419]
[1758534758731,0.48528846,112430.0,112420.0,0.0592019]
[1758534758986,0.85866042,112430.0,112420.0,0.0592019]
[1758534759444,0.85866042,112430.0,112420.0,0.12025525]
[1758534760559,0.48528846,112430.0,112420.0,0.12025525]
[1758534760826,0.17787498,112440.0,112430.0,0.0301519]
[1758534761054,0.48443498,112440.0,112430.0,0.0591619]
[1758534761502,0.48443498,112440.0,112430.0,0.09750474]
[1758534761743,0.85780694,112440.0,112430.0,0.09750474]
[1758534762635,0.48443498,112440.0,112430.0,0.09750474]
[1758534763071,0.85780694,112440.0,112430.0,0.09750474]
[1758534763721,0.50886498,112440.0,112430.0,0.09750474]
[1758534764280,0.48443498,112440.0,112430.0,0.09750474]
[1758534764926,0.17788846,112430.0,112420.0,0.0301919]
[1758534765138,0.55126042,112430.0,112420.0,0.0301919]
[1758534765356,0.20430846,112430.0,112420.0,0.0322419]
[1758534765574,0.17788846,112430.0,112420.0,0.0592019]
[1758534765797,0.17788846,112430.0,112420.0,0.43257386]
[1758534766048,0.17788846,112430.0,112420.0,0.12325526]
[1758534766242,0.17788846,112430.0,112420.0,0.61547814]
[1758534766660,0.17788846,112430.0,112420.0,0.0642019]
[1758534766863,0.17788846,112430.0,112420.0,0.43757386]
[1758534767076,0.17788846,112430.0,112420.0,0.61547814]
[1758534767280,0.17788846,112430.0,112420.0,0.0642019]
[1758534767487,0.17788846,112430.0,112420.0,0.46179002]
[1758534767698,0.17788846,112430.0,112420.0,0.6396943]
[1758534767927,0.17788846,112430.0,112420.0,0.46179002]
[1758534768345,0.17787498,112440.0,112420.0,1.01306391]
[1758534768584,0.17787498,112440.0,112430.0,0.4482727]
[1758534768767,0.48391498,112440.0,112430.0,0.51575353]
[1758534768977,0.48391498,112440.0,112430.0,0.51780353]
[1758534769599,0.48391498,112440.0,112430.0,0.0591619]
[1758534769828,0.85926694,112440.0,112430.0,0.0351819]
[1758534770049,0.88369694,112440.0,112430.0,0.0301519]
[1758534771464,0.17788846,112430.0,112420.0,0.0301919]
[1758534771678,0.20231846,112430.0,112420.0,0.40654386]
[1758534771890,0.48391498,112440.0,112420.0,0.6701661]
[1758534772110,0.17788846,112430.0,112420.0,0.6452561]
[1758534772540,0.17788846,112430.0,112420.0,0.27188414]
[1758534772756,0.20230498,112440.0,112420.0,0.6452561]
[1758534772962,0.48444846,112430.0,112420.0,0.73552577]
[1758534773177,0.17787498,112440.0,112430.0,0.20804036]
[1758534773393,0.48419498,112440.0,112430.0,0.48879353]
[1758534773635,0.48419498,112440.0,112430.0,0.51780353]
[1758534774078,0.48419498,112440.0,112430.0,0.69569199]
[1758534774509,0.48423498,112440.0,112430.0,0.69569199]
[1758534774697,0.48423498,112440.0,112430.0,0.32232003]
[1758534774903,0.48423498,112440.0,112430.0,0.69569199]
[1758534775118,0.48423498,112440.0,112430.0,0.14443157]
[1758534775328,0.17787498,112440.0,112430.0,0.62821116]
[1758534775537,0.18679696,112450.0,112440.0,0.20802454]
[1758534775756,0.49266966,112450.0,112440.0,0.23498454]
[1758534775964,0.49266966,112450.0,112440.0,0.23703454]
[1758534776394,0.49266966,112450.0,112440.0,0.6104065]
[1758534776606,0.49266966,112450.0,112440.0,0.51780353]
[1758534777017,0.49266966,112450.0,112440.0,0.69567617]
[1758534777721,0.48377682,112450.0,112440.0,0.69567617]
[1758534778622,0.48377682,112450.0,112440.0,0.51780353]
[1758534778854,0.48377682,112450.0,112440.0,0.14443157]
[1758534779092,0.48377682,112450.0,112440.0,0.6104065]
[1758534779646,0.30592,112450.0,112440.0,0.6104065]
[1758534780307,0.48377682,112450.0,112440.0,0.69567617]
[1758534780513,0.21116306,112460.0,112440.0,0.69567617]
[1758534780727,0.18681662,112460.0,112450.0,0.42944386]
[1758534780934,0.48356457,112460.0,112450.0,0.69453035]
[1758534781151,8.356e-05,112460.0,112450.0,0.69453035]
[1758534781385,0.30568356,112460.0,112450.0,0.77980002]
[1758534781630,0.30568356,112460.0,112450.0,0.40642806]
[1758534781864,0.30568356,112460.0,112450.0,0.77980002]
[1758534782066,0.30568356,112460.0,112450.0,0.40642806]
[1758534782553,0.30568356,112460.0,112450.0,0.77980002]
[1758534782759,0.48352457,112460.0,112450.0,0.40642806]
[1758534782972,0.48652457,112460.0,112450.0,0.69453035]
[1758534783395,0.48352457,112460.0,112450.0,0.69453035]
[1758534783598,0.30568356,112460.0,112450.0,0.69453035]
[1758534784015,0.48352457,112460.0,112450.0,0.31796839]
[1758534784230,0.48352457,112460.0,112450.0,0.37276134]
[1758534784425,0.48352457,112460.0,112450.0,0.81362408]
[1758534785152,0.48352457,112460.0,112450.0,0.44025212]
[1758534785626,0.48550457,112460.0,112450.0,0.15439563]
[1758534785856,0.51017457,112460.0,112450.0,0.52776759]
[1758534786088,0.51017457,112460.0,112450.0,0.47297464]
[1758534786532,0.17785682,112450.0,112440.0,0.37337196]
[1758534786801,0.17984682,112450.0,112440.0,0.37337196]
[1758534787050,0.20451682,112450.0,112440.0,0.37337196]
[1758534787305,0.23126176,112450.0,112440.0,0.40352386]
[1758534787572,0.23126176,112450.0,112440.0,0.09284402]
[1758534787832,0.23126176,112450.0,112440.0,0.40352386]
[1758534788071,0.23126176,112450.0,112440.0,0.40552386]
[1758534788575,0.23126176,112450.0,112440.0,0.40748386]
[1758534789582,0.23126176,112450.0,112440.0,0.41048386]
[1758534790071,0.23126176,112450.0,112440.0,0.40852386]
[1758534790280,0.23126176,112450.0,112440.0,0.09411102]
[1758534790542,0.23126176,112450.0,112440.0,0.40852386]
[1758534790813,0.23126176,112450.0,112440.0,0.0351519]
[1758534791071,0.23384176,112450.0,112440.0,0.0351519]
[1758534792076,0.82762788,112450.0,112440.0,0.0351519]
[1758534792314,0.86680441,112450.0,112440.0,0.005]
[1758534792481,0.89405317,112450.0,112440.0,0.005]
[1758534792700,0.86680441,112450.0,112440.0,0.005]
[1758534792928,0.36917829,112450.0,112440.0,0.005]
[1758534793358,0.33000176,112450.0,112440.0,0.005]
[1758534795516,0.23384176,112450.0,112440.0,0.005]
[1758534795698,0.63692176,112450.0,112440.0,0.005]
[1758534795966,1.17395635,112450.0,112440.0,0.005]
[1758534796211,0.67633023,112450.0,112440.0,0.005]
[1758534796443,1.17395635,112450.0,112440.0,0.005]
[1758534796673,1.51395635,112450.0,112440.0,0.005]
[1758534796905,1.04371375,112450.0,112440.0,0.005]
[1758534797135,1.01633023,112450.0,112440.0,0.005]
[1758534797378,1.12898342,112450.0,112440.0,0.005]
[1758534797610,1.64565678,112450.0,112440.0,0.005]
[1758534797843,1.03537747,112450.0,112440.0,0.003]
[1758534798072,1.53300359,112450.0,112440.0,0.003]
[1758534798293,0.17788846,112430.0,112420.0,0.0301919]
[1758534798539,0.50813846,112430.0,112420.0,0.0352219]
[1758534798777,0.51012846,112430.0,112420.0,0.0352219]
[1758534799024,0.50813846,112430.0,112420.0,0.1178467]
[1758534799251,0.51013846,112430.0,112420.0,0.0352219]
[1758534799482,0.51013846,112430.0,112420.0,0.0321619]
[1758534799706,0.50813846,112430.0,112420.0,0.0658819]
[1758534800155,0.51011846,112430.0,112420.0,0.0391619]
[1758534800617,0.51011846,112430.0,112420.0,0.0421619]
[1758534800845,0.51243846,112430.0,112420.0,0.0401919]
[1758534801088,0.51243846,112430.0,112420.0,0.01004]
[1758534801309,0.51501846,112430.0,112420.0,0.01004]
[1758534801784,0.51243846,112430.0,112420.0,0.01004]
[1758534802274,0.51423846,112430.0,112420.0,0.00704]
[1758534802497,0.54099065,112430.0,112420.0,4e-05]
[1758534802726,0.54099065,112430.0,112420.0,0.00304]
[1758534803862,0.54099065,112430.0,112420.0,0.00504]
[1758534804353,0.54095065,112430.0,112420.0,0.00701]
[1758534804572,0.23173065,112430.0,112420.0,0.00504]
[1758534804788,0.27099572,112430.0,112420.0,0.00504]
[1758534805005,0.58227572,112430.0,112420.0,0.00504]
[1758534805223,0.67847572,112430.0,112420.0,0.00504]
[1758534805447,1.17610184,112430.0,112420.0,0.00504]
[1758534806307,1.13683677,112430.0,112420.0,0.00504]
[1758534806522,0.63921065,112430.0,112420.0,0.00504]
[1758534806711,0.23173065,112430.0,112420.0,0.00504]
[1758534806951,1.04015677,112430.0,112420.0,0.00504]
[1758534807161,0.63873065,112430.0,112420.0,0.00504]
[1758534807373,1.13635677,112430.0,112420.0,0.00504]
[1758534807812,0.20464065,112430.0,112420.0,0.00707]
[1758534808047,0.51516065,112430.0,112420.0,0.03486]
[1758534808510,0.20464065,112430.0,112420.0,0.0911278]
[1758534808727,0.20464065,112430.0,112420.0,0.03486]
[1758534808953,0.20464065,112430.0,112420.0,0.0650119]
[1758534809244,0.48848846,112430.0,112420.0,0.56263802]
[1758534809465,0.48848846,112430.0,112420.0,0.63669769]
[1758534809683,0.48848846,112430.0,112420.0,0.13907157]
[1758534809912,0.48848846,112430.0,112420.0,0.11427157]
[1758534810172,0.51264846,112430.0,112420.0,0.0402119]
[1758534810466,0.51462846,112430.0,112420.0,0.0372219]
[1758534810890,0.55390304,112430.0,112420.0,0.0372219]
[1758534811108,0.55390304,112430.0,112420.0,0.0351919]
[1758534811325,0.51720846,112430.0,112420.0,0.00504]
[1758534811539,0.62372145,112430.0,112420.0,0.00504]
[1758534811768,1.50062215,112430.0,112420.0,0.00504]
[1758534811983,1.51879423,112430.0,112420.0,0.00504]
[1758534812187,1.54555098,112430.0,112420.0,0.00504]
[1758534812834,1.04792486,112430.0,112420.0,0.00504]
[1758534813048,1.04792486,112430.0,112420.0,0.00304]
[1758534813415,1.54655098,112430.0,112420.0,0.00304]
[1758534813803,1.04892486,112430.0,112420.0,0.00304]
[1758534814076,0.73832486,112430.0,112420.0,4e-05]
[1758534814284,1.88284341,112430.0,112420.0,4e-05]
[1758534814459,1.88584341,112430.0,112420.0,4e-05]
[1758534815309,1.09316341,112430.0,112420.0,4e-05]
[1758534815486,1.88612341,112430.0,112420.0,4e-05]
[1758534815719,1.47376696,112430.0,112420.0,4e-05]
[1758534815915,1.54035563,112430.0,112420.0,4e-05]
[1758534816097,2.03798175,112430.0,112420.0,4e-05]
[1758534816297,1.54035563,112430.0,112420.0,4e-05]
[1758534816496,2.03798175,112430.0,112420.0,4e-05]
[1758534816905,1.45508596,112430.0,112420.0,4e-05]
[1758534817088,1.95271208,112430.0,112420.0,4e-05]
[1758534817454,1.9134375,112430.0,112420.0,4e-05]
[1758534817957,1.41581138,112430.0,112420.0,4e-05]
[1758534818402,1.88605398,112430.0,112420.0,4e-05]
[1758534819062,1.38842786,112430.0,112420.0,4e-05]
[1758534819500,1.88605398,112430.0,112420.0,4e-05]
[1758534819725,1.8678819,112430.0,112420.0,4e-05]
[1758534820153,1.88597296,112430.0,112420.0,4e-05]
[1758534820363,1.90500407,112430.0,112420.0,4e-05]
[1758534820775,1.99027374,112430.0,112420.0,4e-05]
[1758534821002,1.19731374,112430.0,112420.0,4e-05]
[1758534821216,1.08538407,112430.0,112420.0,0.00207]
[1758534821431,1.38732684,112430.0,112420.0,4e-05]
[1758534821662,1.08292717,112430.0,112420.0,4e-05]
[1758534821895,1.87728717,112430.0,112420.0,4e-05]
[1758534822356,1.37966105,112430.0,112420.0,4e-05]
[1758534822589,0.54098999,112430.0,112420.0,0.00506]
[1758534822820,0.95022999,112430.0,112420.0,0.02986]
[1758534823297,1.44785611,112430.0,112420.0,0.02986]
[1758534823547,0.95022999,112430.0,112420.0,0.02986]
[1758534823768,0.95010999,112430.0,112420.0,0.02986]
[1758534823981,1.44773611,112430.0,112420.0,0.02986]
[1758534824197,0.95010999,112430.0,112420.0,0.02986]
[1758534824426,1.44773611,112430.0,112420.0,0.02986]
[1758534824643,1.35133611,112430.0,112420.0,0.02986]
[1758534824866,0.54098999,112430.0,112420.0,0.02986]
[1758534825087,1.44749611,112430.0,112420.0,0.02986]
[1758534825318,1.03861611,112430.0,112420.0,0.02986]
[1758534825533,1.44729611,112430.0,112420.0,0.02986]
[1758534826424,1.35101611,112430.0,112420.0,0.02986]
[1758534826436,1.35101611,112430.0,112420.0,0.0600119]
[1758534826437,0.20864521,112430.0,112420.0,0.0600119]
[1758534826658,0.59048846,112430.0,112420.0,0.06779629]
[1758534827317,1.08411458,112430.0,112420.0,0.06779629]
[1758534827545,0.58648846,112430.0,112420.0,0.06779629]
[1758534827969,1.08411458,112430.0,112420.0,0.06779629]
[1758534828190,0.58648846,112430.0,112420.0,0.06779629]
[1758534828405,0.17788846,112430.0,112420.0,0.58321283]
[1758534828623,0.48976846,112430.0,112420.0,0.06779629]
[1758534828832,0.17788846,112430.0,112420.0,0.08558671]
[1758534829069,0.48972846,112430.0,112420.0,0.08558671]
[1758534829569,0.48972846,112430.0,112420.0,0.06779629]
[1758534833767,0.48972846,112430.0,112420.0,0.08558671]
[1758534833991,0.17788846,112430.0,112420.0,0.84638678]
[1758534834200,0.20463837,112440.0,112430.0,0.0301519]
[1758534834201,0.17788628,112440.0,112430.0,0.0301519]
[1758534834383,0.9863924,112440.0,112430.0,0.0474885]
[1758534834663,0.48876628,112440.0,112430.0,0.0752785]
[1758534834873,0.48868628,112440.0,112430.0,0.0752785]
[1758534835754,0.49168628,112440.0,112430.0,0.0752785]
[1758534836310,0.49168628,112440.0,112430.0,0.0599719]
[1758534836521,0.9903124,112440.0,112430.0,0.0599719]
[1758534837086,0.49268628,112440.0,112430.0,0.0599719]
[1758534837302,1.0131324,112440.0,112430.0,0.0599719]
[1758534837506,1.0151324,112440.0,112430.0,0.0599719]
[1758534837714,0.51750628,112440.0,112430.0,0.0599719]
[1758534837952,1.0151324,112440.0,112430.0,0.0351719]
[1758534838166,0.51750628,112440.0,112430.0,0.0321819]
[1758534838630,1.0151324,112440.0,112430.0,0.0321819]
[1758534839503,0.51750628,112440.0,112430.0,0.0321819]
[1758534839724,0.51750628,112440.0,112430.0,0.0473845]
[1758534839932,0.51750628,112440.0,112430.0,0.0453545]
[1758534840140,0.51750628,112440.0,112430.0,0.0474045]
[1758534840794,0.51550628,112440.0,112430.0,0.0505945]
[1758534841035,0.004,112440.0,112430.0,0.2698318]
[1758534841255,0.004,112440.0,112430.0,0.83493875]
[1758534841484,0.004,112440.0,112430.0,0.33731263]
[1758534841731,0.004,112440.0,112430.0,0.64859263]
[1758534841951,0.17792483,112460.0,112430.0,0.83493875]
[1758534842182,0.17792483,112460.0,112440.0,0.78431897]
[1758534842440,0.17792483,112460.0,112450.0,0.00205]
[1758534842715,0.17792483,112460.0,112450.0,0.29192649]
[1758534843283,0.17792483,112460.0,112450.0,0.85615535]
[1758534843490,0.17792483,112460.0,112450.0,0.18067241]
[1758534843712,0.17792483,112460.0,112450.0,0.67829853]
[1758534843927,0.17792483,112460.0,112450.0,0.94054741]
[1758534844342,0.17792483,112460.0,112450.0,0.94254741]
[1758534844785,0.17792483,112460.0,112450.0,0.94554741]
[1758534845319,0.17792483,112460.0,112450.0,0.27006447]
[1758534845523,0.17792483,112460.0,112450.0,0.1580448]
[1758534845734,0.20074483,112460.0,112450.0,0.62818076]
[1758534845954,0.17792483,112460.0,112450.0,0.80603758]
[1758534846145,8.356e-05,112460.0,112450.0,0.89130725]
[1758534849059,8.356e-05,112460.0,112450.0,0.39368113]
[1758534849273,8.356e-05,112460.0,112450.0,0.89130725]
[1758534849477,8.356e-05,112460.0,112450.0,0.97657692]
[1758534850786,8.356e-05,112460.0,112450.0,1.28741692]
[1758534852465,8.356e-05,112460.0,112450.0,0.97657692]
[1758534852654,8.356e-05,112460.0,112450.0,1.16275093]
[1758534853325,8.356e-05,112460.0,112450.0,2.29883119]
[1758534853545,8.356e-05,112460.0,112450.0,2.34883119]
[1758534853790,0.33335,112510.0,112500.0,0.5809698]
[1758534854003,4.707e-05,112510.0,112500.0,1.03192627]
[1758534854212,4.707e-05,112510.0,112500.0,1.05863627]
[1758534854901,0.17780904,112510.0,112500.0,0.31255601]
[1758534855110,0.17780904,112510.0,112500.0,0.68559614]
[1758534855326,4.707e-05,112510.0,112500.0,1.03505627]
[1758534855538,4.707e-05,112510.0,112500.0,1.14390594]
[1758534855980,4.707e-05,112510.0,112500.0,1.85694607]
[1758534856189,4.707e-05,112510.0,112500.0,1.85994607]
[1758534856407,4.707e-05,112510.0,112500.0,1.48690594]
[1758534856622,4.707e-05,112510.0,112500.0,1.22603954]
[1758534856835,4.707e-05,112510.0,112500.0,1.53487954]
[1758534857271,4.707e-05,112510.0,112500.0,1.53887954]
[1758534857487,4.707e-05,112510.0,112500.0,1.60676746]
[1758534857694,4.707e-05,112510.0,112500.0,1.29492746]
[1758534857905,4.707e-05,112510.0,112500.0,1.31990336]
[1758534858118,4.707e-05,112510.0,112500.0,1.62958336]
[1758534858342,4.707e-05,112510.0,112500.0,1.62946336]
[1758534859354,4.707e-05,112510.0,112500.0,0.4965336]
[1758534859565,0.17780904,112510.0,112500.0,0.4787136]
[1758534859769,0.02307707,112510.0,112500.0,1.27324746]
[1758534859975,4.707e-05,112510.0,112500.0,1.28939015]
[1758534860204,4.707e-05,112510.0,112500.0,1.27308746]
[1758534860782,4.707e-05,112510.0,112500.0,0.96392746]
[1758534861006,4.707e-05,112510.0,112500.0,0.7878336]
[1758534861221,0.17978904,112510.0,112500.0,0.19630949]
[1758534861468,0.20548904,112510.0,112500.0,0.11103982]
[1758534861873,0.20281904,112510.0,112500.0,0.29085759]
[1758534862152,0.02505707,112510.0,112500.0,0.29085759]
[1758534862330,0.02307707,112510.0,112500.0,0.77920145]
[1758534862657,0.02307707,112510.0,112500.0,0.88805112]
[1758534862658,4.707e-05,112510.0,112500.0,0.88805112]
[1758534863272,0.17780904,112510.0,112500.0,0.88805112]
[1758534863659,0.20281904,112510.0,112500.0,0.37612726]
[1758534863834,0.02307707,112510.0,112500.0,0.86447112]
[1758534864037,4.707e-05,112510.0,112500.0,1.19885112]
[1758534864244,4.707e-05,112510.0,112500.0,2.10933465]
[1758534866482,4.707e-05,112510.0,112500.0,2.15933465]
[1758534869559,4.707e-05,112510.0,112500.0,1.84853465]
[1758534869805,4.707e-05,112510.0,112500.0,1.76948079]
[1758534870693,4.707e-05,112510.0,112500.0,1.36332079]
[1758534870912,0.02683707,112510.0,112500.0,0.77124503]
[1758534871128,4.707e-05,112510.0,112500.0,1.59641079]
[1758534871348,4.707e-05,112510.0,112500.0,1.62377079]
[1758534871753,4.707e-05,112510.0,112500.0,1.28955079]
[1758534871984,4.707e-05,112510.0,112500.0,1.59935079]
[1758534872200,4.707e-05,112510.0,112500.0,1.62349079]
[1758534873745,4.707e-05,112510.0,112500.0,1.89319079]
[1758534875486,4.707e-05,112510.0,112500.0,2.37840465]
[1758534875697,4.707e-05,112510.0,112500.0,1.89319079]
[1758534876794,4.707e-05,112510.0,112500.0,2.37840465]
[1758534877666,4.707e-05,112510.0,112500.0,1.89319079]
[1758534878518,4.707e-05,112510.0,112500.0,1.09845693]
[1758534878749,4.707e-05,112510.0,112500.0,1.40705693]
[1758534878968,4.707e-05,112510.0,112500.0,1.89227079]
[1758534879422,4.707e-05,112510.0,112500.0,1.40705693]
[1758534879853,4.707e-05,112510.0,112500.0,1.89227079]
[1758534880534,4.707e-05,112510.0,112500.0,1.40705693]
[1758534880737,4.707e-05,112510.0,112500.0,1.89227079]
[1758534882594,4.707e-05,112510.0,112500.0,2.15231415]
[1758534883786,4.707e-05,112510.0,112500.0,2.52494276]
[1758534884656,4.707e-05,112510.0,112500.0,2.57494276]
[1758534885508,4.707e-05,112510.0,112500.0,3.02294276]
[1758534885919,4.707e-05,112510.0,112500.0,3.07294276]
[1758534886340,4.707e-05,112510.0,112500.0,2.04664276]
[1758534886811,4.707e-05,112510.0,112500.0,2.45088276]
[1758534888514,4.707e-05,112510.0,112500.0,2.38788276]
[1758534888722,4.707e-05,112510.0,112500.0,2.43788276]
[1758534888929,4.707e-05,112510.0,112500.0,2.45388276]
[1758534889369,4.707e-05,112510.0,112500.0,2.44888276]
[1758534890213,4.707e-05,112510.0,112500.0,2.45388276]
[1758534891541,4.707e-05,112510.0,112500.0,3.17158276]
[1758534892204,4.707e-05,112510.0,112500.0,2.79831415]
[1758534892422,4.707e-05,112510.0,112500.0,3.17094276]
[1758534892638,4.707e-05,112510.0,112500.0,2.76734276]
[1758534892854,4.707e-05,112510.0,112500.0,3.17246276]
[1758534894858,4.707e-05,112510.0,112500.0,2.76734276]
[1758534895070,4.707e-05,112510.0,112500.0,3.17246276]
[1758534895494,4.707e-05,112510.0,112500.0,2.76734276]
[1758534896153,4.707e-05,112510.0,112500.0,3.17194276]
[1758534897476,4.707e-05,112510.0,112500.0,3.12194276]
[1758534897682,4.707e-05,112510.0,112500.0,3.17194276]
[1758534898827,4.707e-05,112510.0,112500.0,3.17101276]
[1758534899053,0.16261531,112550.0,112540.0,0.0301519]
[1758534899269,0.16308586,112550.0,112540.0,0.05094013]
[1758534900222,0.54459941,112550.0,112540.0,0.05094013]
[1758534900868,0.1719708,112550.0,112540.0,0.11845032]
[1758534901105,0.1952708,112550.0,112540.0,0.11845032]
[1758534901783,0.57089941,112550.0,112540.0,0.11845032]
[1758534902514,0.1982708,112550.0,112540.0,0.11845032]
[1758534902722,0.57089941,112550.0,112540.0,0.11845032]
[1758534902930,0.1982708,112550.0,112540.0,0.11845032]
[1758534903344,0.57089941,112550.0,112540.0,0.11845032]
[1758534903783,0.1982708,112550.0,112540.0,0.11845032]
[1758534904614,0.1982708,112550.0,112540.0,0.49107893]
[1758534905037,0.1982708,112550.0,112540.0,0.11845032]
[1758534906422,0.1982708,112550.0,112540.0,0.49107893]
[1758534907018,0.1982708,112550.0,112540.0,0.29616491]
[1758534907223,0.1982708,112550.0,112540.0,0.66879352]
[1758534908256,0.1982708,112550.0,112540.0,0.29616491]
[1758534908459,0.1982708,112550.0,112540.0,0.66879352]
[1758534908872,0.00347055,112550.0,112540.0,1.4351018]
[1758534909073,0.00347055,112550.0,112540.0,1.4381318]
[1758534909274,0.00347055,112550.0,112540.0,1.7313218]
[1758534910037,0.18116935,112550.0,112540.0,1.7048018]
[1758534910268,0.00347055,112550.0,112540.0,1.7048018]
[1758534910475,0.00347055,112550.0,112540.0,1.7313218]
[1758534910684,0.18116935,112550.0,112540.0,1.08899319]
[1758534910892,0.00347055,112550.0,112540.0,1.08899319]